Cogmind - Beta 17 @@@ ROGUE MODE // 2026.07.01 @ 13:09:06 Player: Lolterzard Result: Destroyed by G-34 Mercenary with Small Laser Performance ------------- Evolutions (0) 0 Regions Visited (1) 200 Robots Destroyed (16) 80 Value Destroyed (260) 260 Prototype IDs (0) 0 Alien Tech Used (0) 0 Bonus (0) 0 TOTAL SCORE: 540 Bonus ------- None Cogmind --------- Core Integrity 0/250 Matter 257/300 Energy 244/250 System Corruption 0% Temperature Cool (16) Movement Hovering (116) Ox1 Location -10/Materials Parts ------- > --- POWER (1) -------- Ion Engine > --- PROPULSION (2) --- Hover Unit Hover Unit > --- UTILITY (2) ------ Small Storage Unit Light Armor Plating > --- WEAPON (2) ------- Light Assault Rifle Light Assault Rifle > --- INVENTORY (8) ---- Light Ion Engine Light Treads Medium Matter Pod (100) Propulsion Shielding Medium Laser Grenade Launcher Peak State ------------ > --- POWER ------------ Ion Engine > --- PROPULSION ------- Light Treads Light Treads > --- UTILITY ---------- Small Storage Unit Seismic Detector > --- WEAPON ----------- Medium Laser Light Assault Rifle > --- INVENTORY -------- Ion Engine Light Ion Engine EM Pulse Gun [Rating: 7] Favorites ----------- Power Ion Engine Engine Ion Engine Propulsion Light Treads Treads Light Treads Hover Unit Hover Unit Utility Small Storage Unit Device Seismic Detector Storage Small Storage Unit Protection Light Armor Plating Weapon Light Assault Rifle Energy Gun Medium Laser Ballistic Gun Light Assault Rifle Build | -11 -10 ------- Run | Yrd Mat Slots Evolved . | . . Power . | . . Propulsion . | . . Utility . | . . Weapon . | . . Parts Attached 13 | 7 6 Power 2 | 1 1 Engine 2 | 1 1 Core . | . . Reactor . | . . Propulsion 5 | 2 3 Treads 3 | 2 1 Leg . | . . Wheel . | . . Hover 2 | . 2 Flight . | . . Utility 3 | 2 1 Device 1 | 1 . Storage 1 | 1 . Processor . | . . Hackware . | . . Protection 1 | . 1 Artifact . | . . Weapon 3 | 2 1 Energy Gun 1 | 1 . Energy Cannon . | . . Ballistic Gun 2 | 1 1 Ballistic Cannon . | . . Launcher . | . . Special Weapon . | . . Impact Weapon . | . . Slashing Weapon . | . . Piercing Weapon . | . . Special Melee Weapon . | . . Unidentified Prototypes . | . . Parts Lost 2 | . 2 Power 1 | . 1 Propulsion . | . . Utility 1 | . 1 Weapon . | . . Highest Loss Streak 1 | . 1 To Critical Strikes . | . . Average Backups 6 | 2 6 Power 1 | 1 1 Propulsion . | . 1 Utility 1 | . 2 Weapon 1 | . 1 Tool/Special . | . . Unused Backups 6 | . 6 Power 1 | . 1 Propulsion 1 | . 1 Utility 2 | . 2 Weapon 2 | . 2 Tool/Special . | . . Average Slot Usage (%) 99 | . 99 Engine 13 | . 13 Treads 19 | . 19 Hover 8 | . 8 Device 13 | . 13 Storage 14 | . 14 Energy Gun 2 | . 2 Ballistic Gun 25 | . 25 Peak Build Rating 7 | 7 7 Average Rating 6 | 5 6 On Entrance 3 | . 7 Avg Prop Armor Cover (%) 41 | 41 . Naked Turns . | . . Heaviest Build 14 | 14 14 Greatest Support 40 | 40 40 Greatest Overweight (x) 1 | . 1 Average Overweight (x) . | . . Largest Inventory Capacity 8 | 8 8 Average Capacity 7 | 7 8 Most Carried 8 | 3 8 Average Carried 6 | 2 6 Final Capacity 8 | 8 8 Final Carried 6 | 3 6 Class Distribution -------------------- 100% | Mutant Dominant Class ---------------- Mutant | -10/Materials Resources | -11 -10 ----------- Run | Yrd Mat Matter Collected 419 | 275 144 Remotely . | . . Salvage Created 556 | 143 413 Parts 43 | 18 25 Haulers Intercepted 2 | . 2 Recyclers Shooed 3 | . 3 Parts Field Recycled . | . . Retrieved Matter . | . . Parts Self-Destructed . | . . Prevented . | . . Parts Restored . | . . Kills | -11 -10 ------- Run | Yrd Mat Combat Hostiles Destroyed 5 | . 5 Guns 5 | . 5 Classes Destroyed 6 | 3 3 Worker 4 | 2 2 Tunneler 3 | 3 . Hauler 2 | . 2 Recycler 1 | 1 . Watcher 1 | . 1 Grunt 5 | . 5 Best Kill Streak 4 | 4 2 Combat Bots Only 2 | . 2 Max Kills in Single Turn 2 | 2 1 Gunslinging . | . . Exploded . | . . Melee . | . . Uniques/NPCs Destroyed . | . . Combat | -11 -10 -------- Run | Yrd Mat Hostile Shots Fired 51 | . 51 Missed 13 | . 13 Hits 38 | . 38 Projectile 38 | . 38 Damage Taken 604 | . 604 Core 253 | . 253 Absorbed by Shields . | . . Core Remaining (%) 100 | 100 . Volleys Fired 76 | 12 64 Largest 2 | 2 2 Hottest 70 | 70 40 Shots Fired 152 | 24 128 Gun 152 | 24 128 Cannon . | . . Launcher . | . . Special . | . . Kinetic 140 | 12 128 Thermal 12 | 12 . Explosive . | . . Electromagnetic . | . . Robot Hit Streak 8 | 8 8 Robot Miss Streak 4 | 2 4 Penetration Max . | . . Secondary Targets 1 | . 1 Max Gunslinging Chain 1 | . 1 Shots Hit Robots 100 | 17 83 Core Hits 41 | 8 33 Critical Kills . | . . Critical Parts Destroyed 1 | . 1 Critical Strikes 3 | 2 1 Burn 2 | 2 . Destroy 1 | . 1 Melee Attacks . | . . Impact . | . . Slashing . | . . Piercing . | . . Sneak Attacks . | . . Combat Hostiles . | . . Follow-up Attacks . | . . Damage Inflicted 849 | 186 663 Guns 849 | 186 663 Cannons . | . . Explosions . | . . Melee . | . . Ramming . | . . Kinetic 738 | 75 663 Thermal 111 | 111 . Explosive . | . . Electromagnetic . | . . Impact . | . . Slashing . | . . Piercing . | . . Highest Corruption . | . . Average Corruption . | . . Corruption Purged . | . . Corruption Blocked . | . . Overload Shots . | . . Overflow Damage . | . . Projectiles . | . . Explosions . | . . Melee . | . . Knockbacks . | . . Impact . | . . Kinetic . | . . Secondary . | . . Self-Inflicted Damage . | . . Shots . | . . Rammed . | . . Targets Rammed . | . . Kicked . | . . Crushed . | . . Highest Temperature 140 | 140 29 Average Temperature 29 | 56 12 Received Heat Transfer 309 | . 309 Siege Activations . | . . Martial Activations . | . . Shielding Activations . | . . Robots Disrupted . | . . Combat Hostiles . | . . Robots Corrupted . | . . Combat Hostiles . | . . Parts Fried . | . . Impact Corruptions . | . . Robots Melted . | . . Combat Hostiles . | . . Parts Melted . | . . Heat Transferred 481 | 481 . Parts Sabotaged . | . . Parts Stolen . | . . Parts Stripped . | . . Power Chain Reactions . | . . Alert | -11 -10 ------- Run | Yrd Mat Maximum Alert Level . | . . Low Security (%) 100 | 100 100 Level 1 . | . . Level 2 . | . . Level 3 . | . . Level 4 . | . . Level 5 . | . . High Security . | . . Max Security . | . . Peak Influence 40 | 10 40 Initial 6 | . 6 Average 7 | 1 8 Influence Increases 236 | 30 206 Destroy 0b10 Robot/C 100 | . 100 Destroy 0b10 Robot/NC 55 | 30 25 Destroy Leader 36 | . 36 Lose Combat Pursuer 45 | . 45 Influence Decreases 212 | 20 192 Entered New Map 4 | . 4 Time Decay 198 | 20 178 Lost Part 10 | . 10 Squads Dispatched . | . . Investigation . | . . Extermination . | . . Reinforcement . | . . Assault . | . . Garrison . | . . Intercept . | . . Searches Triggered . | . . Construction Impeded . | . . Haulers Reinforced . | . . Active Scanning Responses . | . . Cargo Convoy Interrupts . | . . Stealth | -11 -10 --------- Run | Yrd Mat Distress Signals 1 | . 1 Communications Jammed . | . . Distress Signals . | . . Times Spotted 18 | . 18 Peak Tracking Total 3 | . 3 Tactical Retreats 2 | . 2 Traps | -11 -10 ------- Run | Yrd Mat Traps Triggered 1 | . 1 Indirectly . | . . Trap Hack Attempts . | . . Triggered . | . . Disarmed . | . . Reprogrammed . | . . Reused . | . . Traps Extracted . | . . Installed . | . . Triggered . | . . Machines | -11 -10 ---------- Run | Yrd Mat Machines Disabled . | . . Max in Single Turn . | . . Machines Repaired . | . . Machines Dismantled . | . . Machines Sabotaged . | . . Overloaded Fab Kills . | . . Hacking | -11 -10 --------- Run | Yrd Mat Machines Accessed 2 | . 2 Terminals 2 | . 2 Fabricators . | . . Repair Stations . | . . Recycling Units . | . . Scanalyzers . | . . Garrison Access . | . . Total Hacks 3 | . 3 Successful 1 | . 1 Failed 2 | . 2 Catastrophic 1 | . 1 Database Lockouts . | . . Manual . | . . Terminals 3 | . 3 Fabricators . | . . Repair Stations . | . . Recycling Units . | . . Scanalyzers . | . . Garrison Access . | . . Terminal Hacks 1 | . 1 Alert Level 1 | . 1 Fabricator Hacks . | . . Repair Station Hacks . | . . Recycling Unit Hacks . | . . Scanalyzer . | . . Garrison Access Hacks . | . . Unauthorized Hacks . | . . Terminals . | . . Fabricators . | . . Repair Stations . | . . Recycling Units . | . . Scanalyzers . | . . Garrison Access . | . . Data Cores Recovered . | . . Used . | . . Hacking Detections 1 | . 1 Full Trace Events 1 | . 1 Feedback Events . | . . Feedback Blocked . | . . Robot Schematics Acquired . | . . Robots Built . | . . Authchips . | . . Time . | . . Total Robot Build Rating . | . . Part Schematics Acquired . | . . Parts Built . | . . Authchips . | . . Time . | . . Total Part Build Rating . | . . Part Studies Acquired . | . . Parts Repaired . | . . Time . | . . Parts Recycled . | . . Recycled Matter . | . . Retrieved Matter . | . . Retrieved Components . | . . Parts Scanalyzed . | . . Part Schematics Acquired . | . . Parts Damaged . | . . Bothacking | -11 -10 ------------ Run | Yrd Mat Used RIF Installer . | . . Robots Hacked . | . . Non-combat . | . . Combat . | . . Robot Hacks Applied . | . . Relay Couplers Released . | . . Fabnet Peak Effective % . | . . Robots Rewired . | . . Allies Hacked . | . . Hacks Repelled . | . . Allies | -11 -10 -------- Run | Yrd Mat Total Allies . | . . Largest Group . | . . Highest-Rated Group . | . . Highest-Rated Ally . | . . Total Orders . | . . Ally Attacks . | . . Total Damage . | . . Kills . | . . Allies Corrupted . | . . Allies Melted . | . . Intel | -11 -10 ------- Run | Yrd Mat Active Infowar (turns) 1061 | 11 1050 Seismic 1061 | 11 1050 Robot Analysis Total . | . . Derelict Logs Recovered . | . . Drone Launches . | . . Drone Recoveries . | . . Exploration | -11 -10 ------------- Run | Yrd Mat Turns Passed 1164 | 104 1060 Spaces Moved 516 | 46 470 Core 15 | 15 . Treads 391 | 31 360 Legs . | . . Wheels . | . . Hover 110 | . 110 Flight . | . . Fastest Speed 50 | 50 116 Average Speed 147 | 124 149 Slowest Speed 160 | 160 160 Overloaded Moves . | . . Propulsion Burnouts . | . . Robots Hopped . | . . Potential Cave-ins . | . . Cave-ins Triggered . | . . Exploration Rate (%) 27 | 3 52 Regions Visited 1 Branch Regions . Pre-discovered Areas . | . . Known Exits Taken . | . . Unknown Exits Taken 1 | 1 . Scrap Searched . | . . Spaces Dug . | . . Terrain Destroyed . | . . Melee . | . . Projectile . | . . AOE . | . . Terrain Rammed . | . . Walls Destroyed . | . . Machines Disabled . | . . Actions | -11 -10 --------- Run | Yrd Mat Total 795 | 68 727 Wait 175 | . 175 Move 515 | 45 470 Hop . | . . Pick Up 11 | 4 7 Fast Attach 8 | 6 2 Attach 4 | 1 3 Detach . | . . Swap 1 | . 1 Drop 5 | . 5 Fire 76 | 12 64 Melee . | . . Ram . | . . Kick . | . . Crush . | . . Escape Stasis . | . . Rewire . | . . Trap . | . . Miscellaneous . | . . Route ------- -11/Scrapyard -10/Materials (discovered 2 exits: [*Mat] / [*Min]) History --------- Turn | Location | Event 45 | -11/Scrapyard | Discovered new exit (range 13) 105 | -11/Scrapyard | Entered Materials 258 | -10/Materials | Discovered new exit (range 14) 311 | -10/Materials | Build established: Mutant 396 | -10/Materials | Discovered new exit (range 6) 462 | -10/Materials | Core integrity fell below 50% 763 | -10/Materials | Core integrity fell below 20% 1165 | -10/Materials | Destroyed by G-34 Mercenary with Small Laser Last Messages --------------- 00699_ Acquired Med. Matter Pod. 00702_ R-06 Scavenger collects Lgt. Ion Engine. 00707_ R-06 Scavenger collects EM Pulse Gun. 00711_ Acquired 2 matter. 00732_ Acquired 6 matter. 00762_ Triggered Explosive Trap. 00762_ An explosion rips through the floor. 00773_ U-05 Engineer lays Concrete. 00792_ K-01 Serf collects debris. 00794_ U-05 Engineer lays Concrete. 00808_ Acquired 2 matter. 00837_ W-16 Scout destroyed. 00842_ Acquired 6 matter. 00846_ Dropped Lgt. Treads. 00848_ Acquired Hover Unit. 00850_ K-01 Serf collects debris. 00868_ K-01 Serf cleans the TF Node. 01126_ Connecting with Terminal... 01155_ Seismic Detector destroyed. 01161_ G-47 Trooper destroyed. Map ----- +----------------------------------------------------+ | # # #????????????? | | # """ + #????????????? | | # |= """ # #?############ | | #|== """ ### #### #?""" ## !!! | | #|= #?# #??# # """ ## !!! | | # #?# #??# # """ ## !! | | ##########?# #??# + ## | | ??????######+#### # ! ## | | ??????# # # ! ## | | ??????# # #?####### | | ??????# # #########+##+# | | ??????# # | | ??????# # ######### | | ??????# + #???????# # | | ??????# # #########+## # | | ??????# # ## # # | | ??????########### ## # # | | ??????# """ # # # # | | ??????# "T" # # # # | | ??????# + " + # # | | ??????# # # # # | | ??????# u"""# # # # | | ??????# """####### # ? | | ??????# """#?????###########+# | | ??????# """#?????# # | | ??????#!^@ #?????# """ """ # | | ??????##g#######?????# """ """ # | | ???????#%#???????????# """ """ # | | ???????# #???????????# # | | ???????# #???????????? = ??# | | ???????# #?????????????? ????# | | ???????# #??????###????###+####### | | ???????# #?????? ""??# ^ | | ???????# #?????# """ # | | ???????# #?????# ! """ + | | ???????# #?????# # | | ???????# ##????# ??# | | ######## T#????####????# ^ | | # # ##????????????# | | # # #??????????? | | # # #?????????" ############# | | # # #???????????????????????? | | # # ###?????????????????????? | | # # #?????????????????????? | | # + #?????????????????????? | | # !! # #?????????????????????? | | # ! # #?????????????????????? | | # ! # #?????????????????????? | | # # < #?????????????????????? | | # # #?????????????????????? | +----------------------------------------------------+ Best States ------------- Heat Dissipation 25 Energy Generation 10 Energy Capacity 250 Matter Stores 300 Matter Capacity 300 Sight Range 16 Terrain Scan Density 10 Evasion (%) 50 Recoil Reduction 2 Item Schematics ----------------- None Robot Schematics ------------------ None Fabricated ------------ Nothing Repaired ---------- Nothing Studied --------- None Alien Tech Used ----------------- None Achievements -------------- None Challenges ------------ None Game ------ Seed ForceChromionHammerchucker Manual? 0 Play Time 00:07:00 Cumulative 67.8 hours Start 2026.07.01 @ 12:58:17 End 2026.07.01 @ 13:09:06 Sessions 1 Manual Loads 0 Difficulty Rogue Special Mode None Game No. 142 Rogue 142 Adventurer 0 Explorer 0 Win Type - Total 0 Types 0/0/0/0/0/0/0/0/0/0 Lore% 31 Gallery% 30 Achievement% 26 Wizard Run 0 Options --------- Layout 0 ASCII 0 Keyboard 0 Movement Mouse Keybinds 0 Fullscreen 2 Font 24/Smallcaps Map View 76x50 Zoom Use 0% Tactical HUD 1 Map Filters NONE Filters NONE Steam 1 RUN: c4207477-a841-4e6d-a4fc-c57809f6b167